bitfinex/quotes_SOLUSD_20240626
["timestamp","ask_amount","ask_price","bid_price","bid_amount"]
[1719407090244,8.32404164,137.02,136.95,15.9884]
[1719407090453,8.32404164,137.02,136.94,6.4044]
[1719407090454,7.3006,136.98,136.94,6.4044]
[1719407091374,7.3017,136.96,136.92,16.0124]
[1719407091675,7.471,136.97,136.92,23.3159]
[1719407093275,7.3025,136.94,136.9,6.4529]
[1719407093761,7.3017,136.96,136.9,13.7571]
[1719407094686,0.17,136.97,136.9,13.7571]
[1719407094687,7.302,136.95,136.9,13.7571]
[1719407095273,7.4713,136.97,136.91,18.2596]
[1719407095768,7.4713,136.97,136.92,7.3032]
[1719407095964,0.17,136.97,136.91,18.2596]
[1719407096175,7.3021,136.95,136.9,6.4529]
[1719407096474,7.3024,136.94,136.9,6.4529]
[1719407097740,7.302,136.95,136.9,6.4529]
[1719407097939,18.2524,136.97,136.9,6.4529]
[1719407098176,7.3034,136.93,136.9,6.4529]
[1719407099475,7.3045,136.91,136.89,16.3448]
[1719407099653,7.3045,136.91,136.87,6.1891]
[1719407099853,7.3037,136.92,136.87,13.4952]
[1719407100154,7.59484986,136.94,136.87,6.1891]
[1719407100380,0.34,136.96,136.87,6.1891]
[1719407100549,7.3026,136.94,136.88,7.3053]
[1719407100958,7.3031,136.93,136.88,7.3053]
[1719407101868,7.3035,136.92,136.87,6.1891]
[1719407102072,0.17,136.94,136.87,6.1891]
[1719407102275,7.3047,136.9,136.87,6.1891]
[1719407103090,7.3042,136.91,136.87,6.1891]
[1719407105284,7.3046,136.9,136.87,6.1891]
[1719407106152,18.2577,136.93,136.87,6.1891]
[1719407106153,7.3051,136.89,136.87,6.1891]
[1719407106977,7.3047,136.9,136.85,23.9271]
[1719407107162,7.3053,136.89,136.85,16.6199]
[1719407107672,7.3042,136.91,136.86,7.3067]
[1719407108083,5.05577191,136.94,136.86,6.6141]
[1719407108261,23.06129501,136.97,136.89,7.3047]
[1719407108461,7.3028,136.94,136.89,7.3047]
[1719407108675,7.3028,136.94,136.88,25.5692]
[1719407108880,7.3035,136.92,136.88,18.2638]
[1719407109188,7.3031,136.93,136.88,18.2638]
[1719407109563,7.3026,136.94,136.88,18.2638]
[1719407110067,7.3026,136.94,136.89,7.3048]
[1719407110585,30.90043387,136.97,136.88,25.5692]
[1719407110586,7.303,136.93,136.88,25.5692]
[1719407111161,18.2548,136.95,136.86,6.6141]
[1719407111470,7.3044,136.91,136.86,13.9205]
[1719407111871,8.66404164,136.94,136.86,6.6141]
[1719407112078,18.2577,136.93,136.86,6.6141]
[1719407112486,7.3041,136.91,136.86,13.9205]
[1719407112787,8.66404164,136.94,136.86,13.9205]
[1719407112788,7.3037,136.92,136.86,13.9205]
[1719407113090,7.3046,136.9,136.86,6.6141]
[1719407113270,7.3042,136.91,136.86,13.9207]
[1719407113977,7.3046,136.9,136.86,6.6141]
[1719407115278,7.3051,136.89,136.86,6.6141]
[1719407116579,7.3048,136.9,136.86,6.6141]
[1719407117386,7.3036,136.92,136.87,7.3058]
[1719407117589,7.3031,136.93,136.88,7.3055]
[1719407118161,7.3025,136.94,136.89,7.3049]
[1719407118370,7.3033,136.93,136.9,15.5415]
[1719407118790,7.3035,136.92,136.9,15.5415]
[1719407118987,7.3014,136.96,136.91,13.8253]
[1719407119368,7.3014,136.96,136.91,6.5215]
[1719407119596,7.3014,136.96,136.91,13.8254]
[1719407119995,7.3014,136.96,136.91,6.5215]
[1719407120576,7.3014,136.96,136.91,13.8255]
[1719407120979,7.3014,136.96,136.91,6.5215]
[1719407121395,7.3014,136.96,136.91,13.8253]
[1719407121693,7.3014,136.96,136.91,6.5215]
[1719407121878,8.32404164,136.98,136.93,7.3026]
[1719407122084,16.0694,137.04,136.95,22.4637]
[1719407122085,277.50798106,137.04,136.95,22.4637]
[1719407122285,7.299,137.01,136.96,6.6146]
[1719407122481,7.299,137.01,136.96,13.9159]
[1719407122988,7.2993,137.0,136.96,6.6146]
[1719407123590,7.2989,137.01,136.96,6.6146]
[1719407124584,7.2994,137.0,136.96,6.6146]
[1719407125100,7.2988,137.01,136.96,6.6146]
[1719407125477,400.92204164,137.03,136.97,25.5525]
[1719407125677,7.2985,137.02,136.97,18.2521]
[1719407126094,7.2987,137.01,136.97,18.2521]
[1719407127005,411.86924164,137.03,136.96,6.6146]
[1719407127375,7.3001,136.99,136.96,6.6146]
[1719407127669,7.2994,137.0,136.96,6.6146]
[1719407128087,7.2998,136.99,136.96,6.6146]
[1719407128289,26.56924164,137.03,136.96,6.6146]
[1719407128613,18.2473,137.01,136.96,6.6146]
[1719407128778,7.3008,136.97,136.96,6.6146]
[1719407129192,15.62314164,137.01,136.96,6.6146]
[1719407129386,18.2436,137.04,136.96,24.8677]
[1719407129387,7.2985,137.02,136.96,24.8677]
[1719407129593,18.2436,137.04,136.96,6.6146]
[1719407129795,18.2456,137.02,136.96,6.6146]
[1719407130001,7.3014,136.96,136.95,15.1622]
[1719407130174,7.301,136.97,136.95,15.1622]
[1719407130578,8.49404164,137.01,136.95,15.1622]
[1719407130881,7.3002,136.99,136.95,15.1622]
[1719407131076,26.74104164,137.01,136.95,15.1622]
[1719407131705,0.17,137.0,136.95,15.1622]
[1719407132389,7.3014,136.96,136.95,15.1622]
[1719407132587,7.3014,136.96,136.89,18.2615]
[1719407132588,7.3021,136.95,136.92,16.4771]
[1719407132801,7.3026,136.94,136.92,16.4771]
[1719407133002,18.2522,136.97,136.89,6.6409]
[1719407133304,7.3044,136.91,136.89,6.6409]
[1719407133487,7.3037,136.92,136.89,6.6409]
[1719407133896,7.3041,136.91,136.89,6.6409]
[1719407134083,7.3037,136.92,136.89,6.6409]
[1719407134406,0.34,136.96,136.91,7.304]
[1719407134407,7.3015,136.96,136.91,7.304]
[1719407135000,8.32404164,137.0,136.92,7.3035]
[1719407135209,8.32404164,137.0,136.93,16.3682]
[1719407135210,0.17,136.99,136.93,16.3682]
[1719407135401,7.2998,136.99,136.94,0.43188325]
[1719407135712,7.3005,136.98,136.93,23.671]
[1719407135912,7.2999,136.99,136.93,23.671]
[1719407136588,7.3005,136.98,136.93,16.3682]
[1719407136788,7.3009,136.97,136.93,16.3682]
[1719407136984,7.3003,136.98,136.93,23.671]
[1719407138095,18.2461,137.02,136.94,24.7338]
[1719407138288,7.2992,137.0,136.95,7.3018]
[1719407138489,7.2989,137.01,136.95,7.3018]
[1719407139000,7.2989,137.01,136.96,7.3013]
[1719407139387,255.5,137.06,136.96,18.2533]
[1719407139587,7.2975,137.04,136.97,6.7336]
[1719407139811,7.2977,137.03,136.98,25.5507]
[1719407140115,7.2977,137.03,136.98,18.2506]
[1719407140321,7.2982,137.02,136.98,18.2506]
[1719407140488,18.2404,137.06,136.98,18.2506]
[1719407140696,23.29523886,137.06,136.97,6.3936]
[1719407140930,7.2986,137.02,136.97,6.3936]
[1719407141431,7.2986,137.02,136.97,13.6943]
[1719407141919,7.2975,137.04,136.98,7.3001]
[1719407142789,7.2976,137.03,136.98,7.3001]
[1719407142989,7.2976,137.03,136.97,31.9459]
[1719407143184,7.2989,137.01,136.97,6.3936]
[1719407143401,0.17,137.05,136.97,6.3936]
[1719407143402,7.2997,137.0,136.97,6.3936]
[1719407143584,7.2989,137.01,136.97,6.3936]
[1719407144386,7.2983,137.02,136.97,6.3936]
[1719407144595,7.2983,137.02,136.97,13.6944]
[1719407144798,7.2982,137.02,136.97,13.6942]
[1719407144997,7.2978,137.03,136.97,13.6942]
[1719407145607,0.17,137.04,136.97,6.3936]
[1719407145900,7.2999,136.99,136.97,6.3936]
[1719407146301,7.2992,137.01,136.97,6.3936]
[1719407146510,7.2993,137.0,136.97,6.3936]
[1719407146811,18.2443,137.03,136.97,6.3936]
[1719407147004,0.34,137.02,136.97,6.3936]
[1719407147524,7.3003,136.98,136.97,6.3936]
[1719407148197,18.2472,137.01,136.97,6.3936]
[1719407148198,7.2997,137.0,136.97,6.3936]
[1719407149129,0.34,137.02,136.93,6.6375]
[1719407149335,7.3017,136.96,136.93,6.6375]
[1719407150833,7.301,136.97,136.93,6.6375]
[1719407152105,7.3004,136.98,136.94,1.46026246]
[1719407153027,7.3011,136.97,136.94,1.46026246]
[1719407154311,7.3004,136.98,136.94,1.46026246]
[1719407154531,8.32310859,137.01,136.94,1.46026246]
[1719407154702,7.2995,137.0,136.94,7.3022]
[1719407155207,7.2999,136.99,136.94,7.3022]
[1719407155420,7.2999,136.99,136.95,1.45995792]
[1719407155637,7.2999,136.99,136.94,7.3022]
[1719407156435,26.57040859,137.01,136.93,24.894]
[1719407156931,7.3009,136.97,136.93,6.6375]
[1719407157650,7.3005,136.98,136.93,6.6375]
[1719407158024,7.3005,136.98,136.93,13.9403]
[1719407159538,7.3009,136.97,136.93,6.6375]
[1719407160429,7.2998,136.99,136.94,7.3023]
[1719407160735,8.32310859,137.01,136.95,7.3019]
[1719407160736,7.2995,137.0,136.95,7.3019]
[1719407160908,7.2995,137.0,136.95,8.23014129]
[1719407161307,7.2999,136.99,136.95,0.92824129]
[1719407161620,7.2999,136.99,136.94,25.5582]
[1719407164024,7.3003,136.98,136.94,18.2559]
[1719407164221,7.3003,136.98,136.93,13.9402]
[1719407165029,7.3012,136.97,136.93,6.6375]
[1719407165231,7.3022,136.95,136.93,6.6375]
[1719407165415,7.3015,136.96,136.93,6.6375]
[1719407165622,7.59700415,136.99,136.93,6.6375]
[1719407165827,7.3007,136.98,136.93,13.9399]
[1719407166127,7.3009,136.97,136.93,6.6375]
[1719407166334,7.3014,136.96,136.93,6.6375]
[1719407166532,0.17,137.0,136.93,6.6375]
[1719407166711,7.3005,136.98,136.93,13.9404]
[1719407167112,7.3009,136.97,136.93,6.6375]
[1719407168830,7.3014,136.96,136.93,6.6375]
[1719407169346,7.3019,136.95,136.93,6.6375]
[1719407169557,5.8242269,137.05,136.97,15.0172]
[1719407169706,5.8242269,137.05,136.96,6.615]
[1719407169707,24.894,137.09,137.07,7.2955]
[1719407170036,255.5,137.16,137.08,7.295]
[1719407170338,255.5,137.16,137.06,18.24]
[1719407170517,255.5,137.16,137.08,7.2946]
[1719407170720,7.2916,137.15,137.09,7.2944]
[1719407170913,262.7909,137.16,137.09,7.2944]
[1719407171127,262.7909,137.16,137.1,8.07283915]
[1719407171618,255.5,137.16,137.04,21.6322]
[1719407171815,6.81041013,137.15,137.04,21.6322]
[1719407172332,7.2932,137.12,137.06,7.2959]
[1719407172536,6.81041013,137.15,137.05,18.2411]
[1719407172537,7.2925,137.13,137.07,7.2954]
[1719407172713,14.73875601,137.13,137.07,7.2954]
[1719407172919,7.2938,137.11,137.06,7.2959]
[1719407173654,7.4629,137.12,137.06,7.2959]
[1719407173813,0.17,137.12,137.05,18.2411]
[1719407174142,14.73855601,137.13,137.08,7.2944]
[1719407174722,14.73855601,137.13,137.07,25.5334]
[1719407175813,262.7908,137.16,137.1,7.2935]
[1719407176048,262.7908,137.16,137.09,18.235]
[1719407176421,262.7908,137.16,137.09,25.5289]
[1719407176737,262.7908,137.16,137.1,8.59462135]
[1719407177123,255.5,137.16,137.12,7.2925]
[1719407177319,255.5,137.16,137.13,7.2922]
[1719407178148,255.5,137.16,137.12,7.2927]
[1719407178317,9.79708934,137.19,137.13,7.2919]
[1719407178318,17.08628934,137.19,137.13,7.2919]
[1719407179014,9.79708934,137.19,137.11,24.6996]
[1719407179229,9.79708934,137.19,137.08,18.2373]
[1719407179544,7.2923,137.13,137.08,18.2373]
[1719407179940,7.2912,137.16,137.09,7.294]
[1719407180235,0.34,137.15,137.1,7.2939]
[1719407180747,7.2902,137.17,137.1,18.2339]
[1719407180945,17.08658934,137.19,137.13,7.2919]
[1719407181150,9.79708934,137.19,137.14,7.2917]
[1719407181317,17.08628934,137.19,137.14,7.2917]
[1719407181719,17.08628934,137.19,137.13,7.2922]
[1719407182739,7.2897,137.18,137.13,7.2922]
[1719407182940,7.2902,137.17,137.12,25.5244]
[1719407183244,9.79708934,137.19,137.09,25.5297]
[1719407183457,7.2923,137.13,137.08,7.2948]
[1719407184849,7.292,137.14,137.08,7.2948]
[1719407185043,7.292,137.14,137.09,7.2944]
[1719407185622,7.2914,137.15,137.09,7.2944]
[1719407186952,7.2918,137.14,137.09,7.2944]
[1719407187130,7.2918,137.14,137.08,25.5317]
[1719407188563,7.2914,137.15,137.09,7.2941]
[1719407189035,7.2918,137.14,137.09,7.2941]
[1719407189744,34.5798,137.16,137.07,6.6248]
[1719407189924,7.2936,137.11,137.07,6.6248]
[1719407190126,7.68834587,137.15,137.07,13.92]
[1719407190325,7.2927,137.13,137.07,13.92]
[1719407190965,7.2927,137.13,137.08,7.2949]
[1719407191255,15.1447,137.22,137.07,6.7948]
[1719407191553,7.2909,137.16,137.11,25.5262]
[1719407192234,7.29,137.18,137.13,7.2923]
[1719407193029,18.2229,137.19,137.11,18.2332]
[1719407193229,9.79708934,137.18,137.08,18.2364]
[1719407193434,7.2918,137.14,137.09,7.2944]
[1719407193654,16.1911,137.16,137.07,6.6248]
[1719407193828,7.2929,137.12,137.07,32.1584]
[1719407194029,0.17,137.15,137.08,7.2949]
[1719407194243,7.2924,137.13,137.08,7.2949]
[1719407194452,7.292,137.14,137.08,7.2949]
[1719407194845,7.2924,137.13,137.08,7.2949]
[1719407196054,0.17,137.15,137.09,18.2358]
[1719407196352,7.2913,137.15,137.1,7.2935]
[1719407196553,33.27908934,137.16,137.1,7.2935]
[1719407196933,7.2915,137.15,137.1,7.2935]
[1719407197133,7.2918,137.14,137.09,25.5301]
[1719407199539,7.2929,137.12,137.07,13.9201]
[1719407199847,7.2953,137.08,137.03,31.5935]
[1719407200051,0.34,137.11,137.03,31.5935]
[1719407200259,7.2953,137.08,137.03,31.5935]
[1719407200834,7.2946,137.09,137.04,7.2971]
[1719407201029,7.2951,137.08,137.03,31.5937]
[1719407201230,7.2946,137.09,137.04,7.297]
[1719407201459,7.294,137.1,137.05,7.2963]
[1719407201630,0.17,137.11,137.05,7.2963]
[1719407201968,7.2931,137.12,137.07,7.2952]
[1719407202706,7.2934,137.11,137.06,7.2958]
[1719407203055,7.2929,137.12,137.07,7.2953]
[1719407203449,18.2294,137.15,137.06,7.2959]
[1719407203450,7.2936,137.11,137.06,7.2959]
[1719407203649,7.2939,137.1,137.06,7.2959]
[1719407204042,7.2939,137.1,137.05,25.5378]
[1719407204246,7.2936,137.11,137.06,7.296]
[1719407206164,25.98818934,137.16,137.05,0.17]
[1719407206371,7.2921,137.14,137.09,7.294]
[1719407206594,7.2921,137.14,137.09,25.5301]
[1719407207088,7.4613,137.15,137.09,18.2361]
[1719407207293,7.2913,137.15,137.09,18.2361]
[1719407207466,7.2919,137.14,137.1,1.45710404]
[1719407208081,100.0,137.22,137.09,25.5303]
[1719407208082,25.5301,137.25,137.16,21.92]
[1719407208381,0.8499633,137.3,137.16,21.92]
[1719407208382,0.8499633,137.3,137.24,25.5016]
[1719407208559,0.8499633,137.3,137.26,7.2854]
[1719407209586,0.8499633,137.3,137.25,8.69755611]
[1719407209795,0.8499633,137.3,137.25,7.2858]
[1719407209969,0.8499633,137.3,137.26,8.15931301]
[1719407210299,0.8499633,137.3,137.27,8.43979147]
[1719407210786,0.8499633,137.3,137.24,13.395]
[1719407210787,8.1337633,137.3,137.24,13.395]
[1719407211502,255.5,137.31,137.25,15.0393]
[1719407211861,255.5,137.31,137.28,7.2841]
[1719407212058,255.5,137.31,137.29,7.2838]
[1719407213288,255.5,137.31,137.27,7.2847]
[1719407215991,255.5,137.31,137.27,18.2114]
[1719407216163,255.5,137.31,137.28,7.2842]
[1719407216594,255.5,137.31,137.27,25.4961]
[1719407217096,255.5,137.31,137.27,18.2114]
[1719407217269,7.2822,137.32,137.27,18.2114]
[1719407217473,7.2822,137.32,137.27,25.4961]
[1719407218495,0.17,137.31,137.24,7.2864]
[1719407218697,7.2834,137.3,137.24,7.2863]
[1719407218905,0.17,137.29,137.24,7.2863]
[1719407220184,6.4588,137.34,137.25,18.2147]
[1719407220393,7.2836,137.3,137.25,25.5006]
[1719407221191,18.3744,137.33,137.21,33.5107]
[1719407221394,7.284,137.29,137.22,1.45708339]
[1719407221698,7.284,137.29,137.24,7.2861]
[1719407221897,7.284,137.29,137.24,8.74316073]
[1719407222198,16.3683,137.32,137.25,18.2147]
[1719407222408,7.2833,137.3,137.25,25.5005]
[1719407223173,7.2824,137.32,137.27,7.2849]
[1719407223407,255.5,137.35,137.27,18.2119]
[1719407224104,7.2827,137.32,137.27,18.2119]
[1719407224310,255.5,137.35,137.27,18.2119]
[1719407224311,7.2829,137.31,137.27,18.2119]
[1719407224604,7.2824,137.32,137.27,26.95286516]
[1719407225704,7.2824,137.32,137.27,25.4967]
[1719407226380,7.2843,137.28,137.24,18.215]
[1719407226590,7.2842,137.29,137.24,25.5014]
[1719407226905,7.2837,137.3,137.25,7.2859]
[1719407227319,7.2827,137.32,137.26,18.213]
[1719407227603,273.7027,137.35,137.28,7.2839]
[1719407227604,7.2817,137.33,137.28,7.2839]
[1719407227771,7.2817,137.33,137.28,25.4948]
[1719407228388,7.2814,137.34,137.28,18.2109]
[1719407228593,7.2814,137.34,137.29,7.2837]
[1719407228786,7.2817,137.33,137.29,7.2837]
[1719407228989,7.2817,137.33,137.28,25.495]
[1719407230115,16.0186,137.36,137.29,7.2834]
[1719407231218,34.219,137.36,137.27,6.032]
[1719407231385,7.2826,137.32,137.27,13.3168]
[1719407232307,7.2826,137.32,137.27,13.3166]
[1719407232483,7.2833,137.3,137.26,18.2135]
[1719407232991,7.2833,137.3,137.26,25.4988]
[1719407233783,7.2833,137.3,137.26,18.2135]
[1719407234309,7.2833,137.3,137.25,7.2857]
[1719407234914,7.2831,137.31,137.26,7.285]
[1719407235714,18.2035,137.34,137.24,25.5021]
[1719407236012,7.284,137.29,137.24,25.5021]
[1719407236603,7.284,137.29,137.25,7.2859]
[1719407237107,0.17,137.33,137.26,18.2134]
[1719407237297,7.2828,137.31,137.26,25.4984]
[1719407239012,7.2834,137.3,137.26,25.4984]
[1719407239811,7.2825,137.32,137.27,7.2848]
[1719407239987,7.2819,137.33,137.28,7.2842]
[1719407240504,7.2824,137.32,137.27,7.2847]
[1719407240715,7.2824,137.32,137.28,7.2843]
[1719407245611,52.4199,137.36,137.23,24.2551]
[1719407245916,7.2835,137.3,137.25,7.2856]
[1719407246085,7.283,137.31,137.26,7.2853]
[1719407246285,7.2828,137.31,137.26,18.2135]
[1719407246705,7.2828,137.31,137.26,25.4986]
[1719407247122,7.2828,137.31,137.27,7.2848]
[1719407248916,7.2824,137.32,137.27,7.2848]
[1719407251192,18.5417,137.35,137.23,42.4729]
[1719407251193,18.2041,137.34,137.24,18.2162]
[1719407251387,7.2836,137.3,137.25,7.2856]
[1719407252724,7.2836,137.3,137.26,7.2853]
[1719407253017,7.2824,137.32,137.27,7.2846]
[1719407255024,7.2824,137.32,137.27,8.74131592]
[1719407255400,7.2824,137.32,137.27,7.2846]
[1719407256609,7.2828,137.31,137.27,7.2846]
[1719407259227,7.2833,137.3,137.26,25.4983]
[1719407259525,7.2829,137.31,137.26,25.4983]
[1719407265736,7.2833,137.3,137.26,25.4983]
[1719407266028,7.2833,137.3,137.26,18.213]
[1719407267629,0.17,137.33,137.25,7.2858]
[1719407267837,18.2058,137.32,137.23,6.0388]
[1719407268022,7.2842,137.29,137.24,7.2861]
[1719407268329,7.2844,137.28,137.24,7.2861]
[1719407268534,7.2839,137.29,137.24,7.2861]
[1719407269235,7.2835,137.3,137.25,7.2858]
[1719407272639,7.2835,137.3,137.25,34.0758]
[1719407274331,7.2835,137.3,137.26,26.79]
[1719407274540,7.2835,137.3,137.26,34.0754]
[1719407274830,7.2835,137.3,137.25,34.0757]
[1719407275033,7.2838,137.29,137.25,34.0757]
[1719407275543,7.2838,137.29,137.25,26.79]
[1719407275711,7.2838,137.29,137.24,52.2912]
[1719407277723,7.2844,137.28,137.24,52.2912]
[1719407278024,33.9668,137.3,137.21,40.7984]
[1719407278325,7.2856,137.26,137.22,26.79]
[1719407278531,15.7581,137.3,137.22,45.0085]
[1719407278736,7.2837,137.3,137.25,7.2856]
[1719407279125,7.2837,137.3,137.25,34.0756]
[1719407279526,7.2837,137.3,137.26,26.79]
[1719407280043,7.2838,137.29,137.25,34.0756]
[1719407280332,7.2838,137.29,137.25,26.79]
[1719407280641,7.2838,137.29,137.24,25.5013]
[1719407280642,7.284,137.29,137.26,26.79]
[1719407280841,7.2844,137.28,137.25,26.79]
[1719407281016,7.2844,137.28,137.24,45.005]
[1719407282244,7.2851,137.27,137.22,7.2874]
[1719407282427,7.2851,137.27,137.22,34.0774]
[1719407282748,7.2851,137.27,137.23,26.79]
[1719407282921,7.2851,137.27,137.23,34.077]
[1719407283634,7.2851,137.27,137.23,7.287]
[1719407283820,7.2865,137.24,137.21,15.2916]
[1719407284242,6.6544,137.27,137.18,7.57627939]
[1719407284439,7.2872,137.23,137.18,7.2896]
[1719407285142,7.2866,137.24,137.19,7.2889]
[1719407285750,18.3837,137.26,137.18,7.2894]
[1719407285926,18.3837,137.26,137.19,34.0788]
[1719407286117,7.2868,137.24,137.19,34.0788]
[1719407287449,7.2859,137.25,137.21,34.0778]
[1719407287756,7.2855,137.26,137.21,52.2973]
[1719407288041,7.2863,137.25,137.21,26.79]
[1719407288243,7.2865,137.24,137.21,26.79]
[1719407288444,7.2865,137.24,137.2,34.0786]
[1719407288834,7.2862,137.25,137.2,34.0786]
[1719407289047,7.2862,137.25,137.21,7.288]
[1719407289345,15.5714,137.28,137.21,7.288]
[1719407289528,21.46497717,137.28,137.21,7.288]
[1719407289728,7.2859,137.25,137.21,34.078]
[1719407290042,7.2859,137.25,137.21,26.79]
[1719407290417,7.2859,137.25,137.2,52.2986]
[1719407291354,21.46497717,137.28,137.18,26.79]
[1719407291355,18.2123,137.27,137.18,26.79]
[1719407291521,21.46497717,137.28,137.17,25.5146]
[1719407291522,7.2881,137.21,137.17,25.5146]
[1719407291718,7.2883,137.21,137.16,7.2905]
[1719407291962,7.2883,137.21,137.17,26.79]
[1719407292129,7.2877,137.22,137.17,52.3056]
[1719407292327,7.2872,137.23,137.18,7.2896]
[1719407293628,7.2872,137.23,137.18,34.0796]
[1719407294027,0.17,137.26,137.18,26.79]
[1719407294234,7.2868,137.24,137.19,25.5114]
[1719407294648,0.17,137.26,137.19,25.5114]
[1719407294842,7.287,137.23,137.19,25.5114]
[1719407295050,7.287,137.23,137.19,18.2224]
[1719407295859,7.287,137.23,137.19,25.5115]
[1719407296032,18.2152,137.25,137.16,18.2266]
[1719407296229,7.2873,137.23,137.18,7.2893]
[1719407296433,7.2873,137.23,137.18,34.0793]
[1719407296631,7.2873,137.23,137.18,25.5134]
[1719407296833,7.2873,137.23,137.19,7.289]
[1719407298960,7.2867,137.24,137.19,7.289]
[1719407299832,7.2871,137.23,137.18,25.5135]
[1719407300037,0.17,137.26,137.18,25.5135]
[1719407300943,7.2871,137.23,137.18,25.5135]
[1719407301346,7.2866,137.24,137.19,7.289]
[1719407302452,7.287,137.23,137.19,7.289]
[1719407302655,7.287,137.23,137.18,25.5136]
[1719407303156,7.2888,137.2,137.15,32.15]
[1719407303354,7.2888,137.2,137.15,24.8591]
[1719407303555,7.2882,137.21,137.16,7.2903]
[1719407304060,7.2886,137.2,137.16,7.2903]
[1719407305664,7.2883,137.21,137.16,7.2903]
[1719407306570,7.2887,137.2,137.16,7.2903]
[1719407307245,7.2893,137.19,137.15,24.8591]
[1719407307563,33.8246,137.22,137.15,6.6322]
[1719407307736,18.5614,137.21,137.12,18.2309]
[1719407307933,18.5614,137.21,137.13,7.2922]
[1719407308139,7.2905,137.17,137.12,25.5236]
[1719407308350,7.2907,137.16,137.12,25.5236]
[1719407308955,7.2904,137.17,137.13,7.2922]
[1719407309160,7.2907,137.16,137.12,25.5236]
[1719407309544,7.2907,137.16,137.12,18.2309]
[1719407310461,7.2904,137.17,137.12,18.2309]
[1719407311063,7.2904,137.17,137.12,25.5236]
[1719407311357,7.2909,137.16,137.12,18.2309]
[1719407312166,7.2903,137.17,137.12,25.5233]
[1719407312468,7.2898,137.18,137.13,7.292]
[1719407312972,7.2902,137.17,137.13,7.292]
[1719407313347,7.2902,137.17,137.12,25.5235]
[1719407314477,7.2908,137.16,137.12,18.2309]
[1719407318670,7.2908,137.16,137.12,25.5237]
[1719407320265,7.2908,137.16,137.12,18.2309]
[1719407327885,7.2913,137.15,137.11,29.7909]
[1719407328269,7.2913,137.15,137.11,22.4978]
[1719407328478,7.292,137.14,137.11,22.4978]
[1719407328678,7.2915,137.15,137.11,22.4978]
[1719407329191,7.2915,137.15,137.11,29.7911]
[1719407329570,7.2909,137.16,137.11,29.7911]
[1719407331081,7.2909,137.16,137.11,29.7911]
[1719407331784,7.2904,137.17,137.13,7.2922]
[1719407331991,0.17,137.19,137.13,7.2922]
[1719407332168,7.2901,137.18,137.13,7.2922]
[1719407332675,7.2903,137.17,137.13,7.2922]
[1719407333286,7.2903,137.17,137.12,25.5243]
[1719407334172,7.2903,137.17,137.13,1.45823717]
[1719407334870,7.2909,137.16,137.13,1.45823717]
[1719407335182,7.2909,137.16,137.12,18.2317]
[1719407335975,7.2913,137.15,137.11,22.4978]
[1719407336175,7.2918,137.14,137.11,22.4978]
[1719407336993,7.2915,137.15,137.11,22.4978]
[1719407337973,7.2915,137.15,137.11,29.7911]
[1719407338688,7.2909,137.16,137.11,29.7911]
[1719407343187,18.2243,137.18,137.11,29.7911]
[1719407343373,18.3967,137.17,137.11,22.4978]
[1719407343689,7.2918,137.14,137.11,22.4978]
[1719407343874,7.2915,137.15,137.11,23.95359403]
[1719407344490,7.2915,137.15,137.11,31.24689403]
[1719407344688,7.2909,137.16,137.11,31.24689403]
[1719407344864,7.2914,137.15,137.11,29.7911]